[Event "Silver Lake Festival 2022"]
[Site "Veliko Gradiste"]
[Date "2022.06.26"]
[Round "9.4"]
[White "Sadikhov, Ulvi"]
[Black "Damljanovic, Branko"]
[Result "1-0"]
[ECO "A21"]
[WhiteElo "2491"]
[BlackElo "2469"]
[Annotator "TA"]
[PlyCount "113"]
[EventDate "2022.06.16"]
[EventType "swiss"]
[EventCountry "SRB"]
[SourceTitle "playchess.com"]
[Source "ChessBase"]
[SourceQuality "1"]
[TimeControl "5400+30"]

{[%evp 14,113,38,14,20,11,2,13,37,0,23,21,24,27,21,21,62,76,80,13,112,67,67,70,93,83,150,120,237,106,91,43,41,42,40,-5,-7,-7,-8,-7,-4,-33,297,281,389,128,156,157,129,115,172,148,143,85,101,97,103,95,101,42,180,173,166,157,120,115,129,128,154,147,367,227,200,162,177,178,186,177,150,149,156,102,115,112,150,150,248,231,301,255,304,304,452,297,934,927,4137,3908,1872,1841,29983,29984]} 1. c4 {[%emt 0:00:03]} g6 {[%emt 0:05:11]} 2. Nc3 {[%emt 0:00:09]} Bg7 {[%emt 0:00:02]} 3. g3 {[%emt 0:00:12]} d6 {[%emt 0:00:46]} 4. Bg2 {[%emt 0:00:06]} e5 {[%emt 0:00:05]} 5. e4 {[%emt 0:00:35]} Ne7 {[%emt 0:05:18]} 6. Nge2 {[%emt 0:00:30]} Nd7 {[%emt 0:00:21]} 7. O-O {[%emt 0:00:33]} O-O {[%emt 0:00:15]} 8. d3 {[%emt 0:00:16]} c6 {[%emt 0:01:05] A21: English Opening: 1...e5 2 Nc3.} 9. Rb1 {[%emt 0:01:20]} f5 {[%emt 0:00:57] [#]} 10. exf5 $146 {[%emt 0:02:03]} ({Predecessor:} 10. d4 Nf6 11. Bg5 Qc7 12. dxe5 dxe5 13. c5 h6 14. Bxf6 Rxf6 15. Qd3 Bd7 16. Rfd1 {1-0 (25) Foisor,C (2405)-Visanescu,D (1929) Sarata Monteoru 2011}) 10... gxf5 {[%emt 0:00:01][%cal Of5f4] The position is equal.} 11. b4 {[%emt 0:08:28]} a6 {[%emt 0:03:21][%cal Of5f4]} 12. f4 {[%emt 0:03:43]} Ng6 {[%emt 0:01:51]} 13. Qc2 {[%emt 0:01:39]} Nf6 {[%emt 0:00:27]} 14. c5 {[%emt 0:06:57]} Kh8 {[%emt 0:26:30]} 15. Na4 {[%emt 0:07:18]} Rb8 {[%emt 0:04:21]} 16. Kh1 {[%emt 0:12:03]} (16. cxd6 $16 exf4 17. Nxf4) 16... Ne8 {[%emt 0:06:18]} (16... Be6 $11) 17. Bb2 {[%emt 0:02:40] White is more active.} Be6 {[%emt 0:17:32]} 18. Rbe1 {[%emt 0:03:53]} Bg8 {[%emt 0:08:19]} 19. a3 {[%emt 0:03:17]} Nf6 {[%emt 0:10:09]} (19... dxc5 $142 20. Nxc5 b6) 20. cxd6 $16 {[%emt 0:07:09]} Ng4 {[%emt 0:00:11]} (20... exf4 $16 21. Nxf4 Nxf4) 21. Qd2 {[%emt 0:12:51]} (21. fxe5 $18 {Threatens to win with Nf4.} Ne3 22. Qc5 $1 Nxg2 23. Kxg2) 21... Qxd6 {[%emt 0:00:56]} 22. h3 {[%emt 0:03:44]} ({Better is} 22. fxe5 $16 Bxe5 23. h3 Bxb2 24. Qxb2+ (24. hxg4 Be5 $11) 24... N4e5 25. Nf4) 22... Nf6 $14 {[%emt 0:01:05][%cal Bg4f6,Bf6h5,Bh5f4][%mdl 32]} 23. fxe5 {[%emt 0:06:05]} Nxe5 {[%emt 0:00:02][%cal Of6e4]} 24. Nd4 {[%emt 0:02:25]} ({But not} 24. Rxf5 Qxd3 25. Qxd3 (25. Qg5 $2 h6 $17) 25... Nxd3 $17) 24... Nh5 {[%emt 0:00:52]} 25. Re3 $132 {[%emt 0:00:24][%mdl 2048] White puts up resistance} f4 {[%emt 0:02:03]} 26. gxf4 {[%emt 0:01:33]} Nxf4 {[%emt 0:02:20]} 27. Rxe5 {[%emt 0:01:02]} Bxe5 $4 {[%emt 0:01:57][%mdl 8192] [#]} (27... Qxe5 $15 {stays ahead.} 28. Nxc6 Qe2 29. Qxe2 Nxe2 30. Bxg7+ Kxg7 31. Nxb8 Ng3+ 32. Kg1 Nxf1) 28. Rxf4 $1 $18 {[%emt 0:00:37][%mdl 512]} Bd5 {[%emt 0:00:56] [#]} (28... Rxf4 29. Qxf4) 29. Nf5 $2 {[%emt 0:02:14]} (29. Bxd5 $1 $18 {and the rest is easy.} cxd5 (29... Rxf4 30. Qxf4) 30. Nf5) 29... Qf6 $16 {[%emt 0:00:45]} 30. Bxd5 {[%emt 0:02:10]} Bxb2 {[%emt 0:00:06]} 31. Be4 {[%emt 0:02:05]} ({Don't take} 31. Nxb2 cxd5 32. Na4 Qa1+ 33. Kg2 Rf6) 31... Be5 {[%emt 0:00:43]} (31... Bxa3 $16 32. Rf1 Rbe8) 32. Rg4 {[%emt 0:00:18]} b6 {[%emt 0:00:45] Inhibits Nc5.} 33. d4 {[%emt 0:00:52]} (33. Rh4 $142 {aiming for Rh6.} Rg8 34. Qh6) 33... Bc7 {[%emt 0:00:02]} 34. Nc3 {[%emt 0:00:53][%cal Ba4c3,Bc3e4,Be4g5][%mdl 32]} Rbe8 {[%emt 0:00:01][%cal Oe8e4]} 35. Bd3 {[%emt 0:04:31]} Qe6 {[%emt 0:00:27]} 36. Qf2 {[%emt 0:01:09]} (36. Qg5 $16 {[%csl Gf5,Gg4][%cal Rg5g7]} Rg8 37. Qh4) 36... Rf7 {[%emt 0:01:15]} (36... Qb3 $14 37. Qd2 Qe6) 37. Re4 $18 {[%emt 0:00:30]} Qd7 {[%emt 0:00:16]} 38. Rxe8+ {[%emt 0:00:18]} Qxe8 {[%emt 0:00:00]} 39. Ne4 {[%emt 0:00:18] Against c5} ({Weaker is} 39. Bxa6 b5 40. d5 Be5 $17) 39... Rf8 {[%emt 0:00:22]} 40. Ng5 {[%emt 0:01:24][%cal Og5h7]} Qh5 {[%emt 0:00:40] [#]} 41. Qe3 $1 {[%emt 0:01:08] Qe7 is the strong threat.} Rg8 $2 {[%emt 0:01:28]} (41... Bd8 $16 {is a better defense.} 42. Ne7 Rf6) 42. h4 {[%emt 0:01:02] Threatening mate with Qe7.} Re8 {[%emt 0:00:54] Inhibits Qe7.} 43. Qf3 {[%emt 0:00:38]} Re1+ {[%emt 0:00:21]} 44. Kg2 {[%emt 0:00:04]} Qxf3+ {[%emt 0:00:03]} 45. Kxf3 {[%emt 0:00:30]} Ra1 {[%emt 0:00:02]} 46. h5 {[%emt 0:00:21] Hoping for h6.} Rxa3 {[%emt 0:00:04]} 47. Ke4 {[%emt 0:00:07]} (47. Ke3 $142) 47... Ra1 {[%emt 0:00:56] [#]} 48. Bc4 $1 {[%emt 0:01:01]} b5 {[%emt 0:00:32]} 49. Be6 {[%emt 0:00:14]} Re1+ {[%emt 0:00:36]} (49... a5 $16) 50. Kf3 {[%emt 0:00:31]} h6 {[%emt 0:00:20]} 51. Nxh6 {[%emt 0:00:18] And now Nhf7+ would win. Pair of Knights!} Kg7 {[%emt 0:00:05]} 52. Ng4 {[%emt 0:00:33]} Rf1+ {[%emt 0:01:37]} (52... Rb1 $142 53. Bd7 Bd6 54. Bxc6 Rf1+ 55. Ke2 Rf5) 53. Ke2 {[%emt 0:00:06]} Rf8 $2 {[%emt 0:00:22]} (53... Rh1 54. h6+ Kf8) 54. Bd7 {[%emt 0:00:25]} Rh8 {[%emt 0:00:33]} 55. Ne6+ {[%emt 0:00:29]} Kf7 {[%emt 0:00:07]} 56. Nxc7 {[%emt 0:00:07]} Rxh5 {[%emt 0:00:11]} 57. Be8+ {[%emt 0:00:03] Weighted Error Value: White=0.27 (precise) /Black=0.63} 1-0

[Event "Silver Lake Festival 2022"]
[Site "Veliko Gradiste"]
[Date "2022.06.26"]
[Round "9.5"]
[White "Mamedov, Edgar"]
[Black "Zanan, Evgeny"]
[Result "1/2-1/2"]
[ECO "D00"]
[WhiteElo "2004"]
[BlackElo "2534"]
[Annotator "TA"]
[PlyCount "90"]
[EventDate "2022.06.16"]
[EventType "swiss"]
[EventCountry "SRB"]
[SourceTitle "playchess.com"]
[Source "ChessBase"]
[SourceQuality "1"]
[TimeControl "5400+30"]

{[%evp 9,90,0,6,0,80,19,63,0,0,-2,-3,0,-2,-11,-6,-20,0,0,0,0,0,0,0,0,0,-27,-19,-22,-2,-76,-76,-85,-78,-68,-61,-69,-10,-17,-2,-5,-4,-8,-8,-128,-72,-77,-68,-76,-14,-28,0,0,0,0,8,5,8,8,5,8,46,0,0,0,0,-8,0,0,20,0,0,0,20,20,20,20,20,20,18,18,22,22,22]} 1. d4 {[%emt 0:00:02]} Nf6 {[%emt 0:07:48]} 2. Bg5 {[%emt 0:00:26]} d5 {[%emt 0:00:40]} 3. e3 {[%emt 0:01:18]} c5 {[%emt 0:01:11]} 4. Bxf6 {[%emt 0:00:34]} gxf6 {[%emt 0:00:07]} 5. dxc5 {[%emt 0:00:43]} Nc6 {[%emt 0:03:02]} 6. Bb5 {[%emt 0:03:01] D00: 1 d4 d5: Unusual lines.} e5 {[%emt 0:04:20] [#]} (6... e6 $11) 7. c4 $146 {[%emt 0:05:39]} (7. Nc3 $16) ({Predecessor:} 7. b4 a5 8. c3 Bg7 9. Ne2 O-O 10. O-O axb4 11. cxb4 Nxb4 12. Nbc3 Be6 13. f4 {0-1 (35) Khotenashvili,B (2479)-Gunina,V (2496) St Petersburg 2018}) 7... dxc4 {[%emt 0:05:17]} 8. Qxd8+ {[%emt 0:03:00]} (8. Qf3 $1 $14) 8... Kxd8 $11 {[%emt 0:00:04]} 9. Bxc4 {[%emt 0:02:53]} Be6 {[%emt 0:00:31]} 10. Nd2 {[%emt 0:06:22]} Bxc5 {[%emt 0:01:06]} 11. Ne2 {[%emt 0:01:17]} Ke7 {[%emt 0:00:44]} 12. a3 {[%emt 0:04:29] Prevents Nb4.} Rhd8 {[%emt 0:01:14][%cal Od8d2]} 13. Rc1 {[%emt 0:02:29] Bxe6 is the strong threat.} Bb6 {[%emt 0:00:34]} 14. Bxe6 {[%emt 0:03:57]} fxe6 {[%emt 0:01:31]} 15. Nc3 {[%emt 0:04:30]} Rac8 {[%emt 0:03:07]} 16. Ke2 {[%emt 0:01:19]} f5 {[%emt 0:01:44]} 17. Nc4 {[%emt 0:14:05]} Bc7 {[%emt 0:12:35]} 18. f3 {[%emt 0:11:27]} a6 {[%emt 0:04:32]} 19. b4 {[%emt 0:07:19]} (19. Na4 $11) 19... b5 $17 {[%emt 0:10:30]} 20. Nd2 {[%emt 0:00:29][%cal Oc3d5]} Bb6 {[%emt 0:00:20]} 21. Nb3 {[%emt 0:03:21]} h5 {[%emt 0:01:57][%cal Bh7h5,Bh5h4][%mdl 32]} 22. Nb1 {[%emt 0:08:10]} Nb8 {[%emt 0:05:33]} ({Black should play} 22... f4 $15 23. exf4 exf4) 23. N1d2 $11 {[%emt 0:01:03]} Nd7 {[%emt 0:03:24]} 24. g3 {[%emt 0:07:17]} Nf6 {[%emt 0:01:48]} 25. e4 {[%emt 0:02:20]} h4 {[%emt 0:07:52]} 26. Nc5 {[%emt 0:03:41] [#]} (26. Rxc8 $11 {keeps the balance.} Rxc8 27. Rc1 Rxc1 28. Nxc1) 26... Bxc5 {[%emt 0:01:51]} (26... Nh5 $142 $1 27. Rhg1 a5 28. exf5 exf5) 27. Rxc5 $17 {[%emt 0:00:27]} Rxc5 {[%emt 0:00:57]} 28. bxc5 {[%emt 0:00:02][%mdl 4096] Endgame KRN-KRN} Rd4 {[%emt 0:08:12]} ({Better is} 28... Nh5 $17 29. gxh4 Nf4+ 30. Kd1 Nd3) 29. Rc1 {[%emt 0:00:54]} Kd8 {[%emt 0:06:07]} 30. gxh4 {[%emt 0:01:07]} fxe4 {[%emt 0:00:10]} 31. fxe4 {[%emt 0:00:31]} Nxe4 {[%emt 0:00:32]} 32. Nf3 {[%emt 0:00:24][%csl LRd4,LRe5]} Ra4 {[%emt 0:00:08]} 33. h5 {[%emt 0:01:16]} Rxa3 {[%emt 0:01:04]} 34. h6 {[%emt 0:00:17] Strongly threatening h7.} ({Reject} 34. Nxe5 Rh3 35. h6 b4 36. Nc6+ Kc7 37. Nxb4 a5) 34... Nf6 {[%emt 0:00:04]} 35. Nxe5 {[%emt 0:00:54]} (35. Rd1+ $1 $14 Kc7 36. h4 (36. Nxe5 Rh3 $11)) 35... Ra2+ $11 {[%emt 0:03:16] The position is equal.} 36. Kd3 {[%emt 0:00:16] And now Rf1 would win.} Rxh2 {[%emt 0:00:05]} 37. Rf1 {[%emt 0:00:13]} Rh3+ {[%emt 0:03:07]} 38. Kc2 {[%emt 0:00:35]} Ke7 {[%emt 0:01:47]} 39. Nc6+ {[%emt 0:00:51][%mdl 1024] White has compensation.} Kd7 {[%emt 0:00:20]} 40. Ne5+ {[%emt 0:00:07]} Ke7 {[%emt 0:01:19]} 41. Ng6+ Kf7 {[%emt 0:00:30] [#]} 42. c6 $1 Rh5 {[%emt 0:00:30]} (42... Rxh6 $2 43. c7 Rxg6 44. c8=Q $18) 43. c7 {[%emt 0:02:55]} Rc5+ {[%emt 0:00:30]} 44. Kb2 {[%emt 0:00:30] Intending h7 and mate.} Rxc7 45. h7 Rc8 {[%emt 0:00:00] Weighted Error Value: White=0.16 (very precise) /Black=0.17 (very precise)} 1/2-1/2

[Event "Silver Lake Festival 2022"]
[Site "Veliko Gradiste"]
[Date "2022.06.26"]
[Round "9.7"]
[White "Anuj Shrivatri"]
[Black "Creanga, Robert-Ionut"]
[Result "1-0"]
[ECO "C00"]
[WhiteElo "2356"]
[BlackElo "2201"]
[Annotator "TA"]
[PlyCount "83"]
[EventDate "2022.06.16"]
[EventType "swiss"]
[EventCountry "SRB"]
[SourceTitle "playchess.com"]
[Source "ChessBase"]
[SourceQuality "1"]
[TimeControl "5400+30"]

{[%evp 19,82,0,6,8,18,5,33,41,35,37,35,31,29,30,59,38,36,37,37,30,37,33,38,18,69,19,89,100,97,80,103,103,107,100,100,96,91,93,88,75,111,94,108,79,150,111,147,147,262,253,270,277,1176,1126,29990,29991,29991,29992,29992,29993,29993,29994,29996,29997,29999]} 1. Nf3 {[%emt 0:00:09]} Nf6 {[%emt 0:01:16]} 2. g3 {[%emt 0:00:07]} e6 {[%emt 0:02:41]} 3. Bg2 {[%emt 0:00:07]} d5 {[%emt 0:01:36]} 4. O-O {[%emt 0:00:08]} Be7 {[%emt 0:02:51]} 5. d3 {[%emt 0:00:52]} c5 {[%emt 0:03:39]} 6. Nbd2 {[%emt 0:00:07]} Nc6 {[%emt 0:02:00]} 7. e4 {[%emt 0:00:08]} O-O {[%emt 0:01:38]} 8. Re1 {[%emt 0:00:06]} Qc7 {[%emt 0:08:20]} 9. c3 {[%emt 0:00:10]} dxe4 {[%emt 0:07:27]} 10. dxe4 {[%emt 0:00:10]} e5 {[%emt 0:04:08]} 11. Nh4 {[%emt 0:06:04] [#] C00: French: Unusual White 2nd moves.} g6 $146 {[%emt 0:05:52]} ({Predecessor:} 11... Rd8 12. Qe2 Bg4 13. Bf3 Be6 14. Nc4 b5 15. Ne3 c4 16. a4 a6 17. axb5 axb5 18. Rxa8 Rxa8 {0-1 (56) Injac,T (2314)-Smirnov,P (2544) Chess.com INT 2021}) 12. Qe2 {[%emt 0:04:20]} Ne8 {[%emt 0:08:04]} 13. Nhf3 {[%emt 0:11:05] White is slightly better.} Nd6 {[%emt 0:11:20]} 14. h4 {[%emt 0:04:59]} h5 {[%emt 0:10:19]} 15. Nf1 {[%emt 0:03:34][%cal Bd2f1,Bf1e3,Be3d5][%mdl 32]} Be6 {[%emt 0:05:26]} 16. N3d2 {[%emt 0:05:09]} Bg4 {[%emt 0:03:25]} 17. Bf3 {[%emt 0:13:44]} Bxf3 {[%emt 0:02:00]} 18. Qxf3 {[%emt 0:02:57]} Qd7 {[%emt 0:03:21]} 19. Ne3 {[%emt 0:00:34]} Qe6 {[%emt 0:00:54]} 20. Nd5 {[%emt 0:07:25] And now Nc7 would win.} Rac8 {[%emt 0:01:00] Against Nc7} 21. Nb3 {[%emt 0:08:44]} Nc4 {[%emt 0:01:46]} (21... b6 $11) 22. Qe2 {[%emt 0:04:24]} ({White should play} 22. Rd1 $14) 22... N6a5 {[%emt 0:03:17]} (22... Nb6 $11 {remains equal.}) 23. Nxa5 $16 {[%emt 0:02:12]} (23. Bh6 {with more complications.} Rfe8 24. Nxa5 Nxa5 25. Qb5) 23... Nxa5 {[%emt 0:00:04]} 24. b3 {[%emt 0:02:46]} Bd8 {[%emt 0:01:36]} 25. Bh6 {[%emt 0:02:13]} Re8 {[%emt 0:00:44]} 26. Rad1 $36 {[%emt 0:00:07][%mdl 2048] White is really pushing.} a6 {[%emt 0:00:45]} 27. Rd2 {[%emt 0:01:52]} b5 {[%emt 0:01:46]} 28. Red1 {[%emt 0:00:55]} Nb7 {[%emt 0:01:26]} 29. Kh2 {[%emt 0:02:01] 0x0.000bd737f166dp-1022s more active pieces. The black rooks are badly placed.} Kh7 {[%emt 0:02:28]} 30. Be3 {[%emt 0:00:14]} Kg7 {[%emt 0:00:31]} 31. Kg2 {[%emt 0:02:15]} Ra8 {[%emt 0:01:08]} ({Better is} 31... c4) 32. Bg5 {[%emt 0:01:18] Threatens to win with Bxd8.} f6 {[%emt 0:00:47]} 33. Be3 {[%emt 0:00:06]} Qc6 {[%emt 0:00:21]} (33... Rc8 $16 {is a better defense.} 34. a4 bxa4) 34. g4 $18 {[%emt 0:01:09]} hxg4 {[%emt 0:00:28]} 35. Qxg4 {[%emt 0:00:06][%cal Od5c7] Black must now prevent Nc7!} Rh8 $2 {[%emt 0:01:18] [#]} (35... Qe6 36. Nxf6 Bxf6 37. Rd7+ Kh8 38. Qxe6 (38. Qxg6 Qg8 $11) 38... Rxe6) 36. Nb4 $1 {[%emt 0:04:44][%mdl 512] White threatens Rd7+ and mate.} cxb4 {[%emt 0:01:11]} (36... f5 37. Rd7+) 37. Rd7+ {[%emt 0:00:06][%mdl 64] Deflection. White mates.} Kf8 {[%emt 0:00:14]} 38. Qxg6 {[%emt 0:00:16][%csl Gd7][%cal Rg6f7]} Be7 {[%emt 0:00:13]} 39. Bh6+ {[%emt 0:00:15]} Rxh6 {[%emt 0:00:04]} 40. Qxh6+ {[%emt 0:00:08]} Ke8 {[%emt 0:00:47]} 41. Qh8+ {[%emt 0:00:17][%mdl 64] [#] Skewer} Bf8 {[%emt 0:00:12]} 42. Qh5# {[%emt 0:00:05] Weighted Error Value: White=0.08 (flawless) /Black=0.41} 1-0

[Event "Silver Lake Festival 2022"]
[Site "Veliko Gradiste"]
[Date "2022.06.26"]
[Round "9.8"]
[White "Manish Anto Cristiano F"]
[Black "Martic, Ivan"]
[Result "0-1"]
[ECO "D46"]
[WhiteElo "2071"]
[BlackElo "2314"]
[Annotator "TA"]
[PlyCount "47"]
[EventDate "2022.06.16"]
[EventType "swiss"]
[EventCountry "SRB"]
[SourceTitle "playchess.com"]
[Source "ChessBase"]
[SourceQuality "1"]
[TimeControl "5400+30"]

{[%evp 19,20,5,12]} 1. d4 {[%emt 0:00:08]} d5 {[%emt 0:00:21]} 2. c4 {[%emt 0:00:09]} c6 {[%emt 0:00:05]} 3. Nc3 {[%emt 0:00:14]} Nf6 {[%emt 0:00:06]} 4. e3 {[%emt 0:00:21]} e6 {[%emt 0:00:11]} 5. Nf3 {[%emt 0:00:23]} Nbd7 {[%emt 0:00:06]} 6. Qc2 {[%emt 0:01:43]} Bd6 {[%emt 0:00:20]} 7. Bd3 {[%emt 0:00:09]} dxc4 {[%emt 0:00:09]} 8. Bxc4 {[%emt 0:00:07]} b5 {[%emt 0:00:05]} 9. Be2 {[%emt 0:00:13] 9.Be2 is better than 9.Bd3.} Bb7 {[%emt 0:01:09]} 10. O-O {[%emt 0:00:11]} O-O {[%emt 0:00:06][%mdl 32768] [#] Sensor Board Error (Ke4/e5)?} {Predecessor:} 11. e4 $146 {D46: Semi-Slav: 5 e3 Nbd7 6 Bd3, Black avoids the Meran.} e5 12. dxe5 Nxe5 13. Nd4 Neg4 14. Nf5 Bxh2+ 15. Kh1 Bb8 16. Bg5 Bc8 17. Rad1 Qc7 18. Nd6 a6 19. g3 h6 20. Bxf6 Nxf6 21. e5 Nd5 22. Nxd5 cxd5 23. Qxc7 Bxc7 24. Nxc8 {½-½ (24) Mareco,S (2652)-Durarbayli,V (2628) Havana 2022} 0-1

[Event "Silver Lake Festival 2022"]
[Site "Veliko Gradiste"]
[Date "2022.06.26"]
[Round "9.9"]
[White "Govedarica, Radovan"]
[Black "Ojas Kulkarni"]
[Result "1/2-1/2"]
[ECO "C68"]
[WhiteElo "2289"]
[BlackElo "2235"]
[Annotator "TA"]
[PlyCount "34"]
[EventDate "2022.06.16"]
[EventType "swiss"]
[EventCountry "SRB"]
[SourceTitle "playchess.com"]
[Source "ChessBase"]
[SourceQuality "1"]
[TimeControl "5400+30"]

{[%evp 12,34,0,0,0,10,2,0,10,-55,-56,-57,-58,-92,-91,-114,-106,-145,-111,-103,-106,-143,0,0,0]} 1. e4 {[%emt 0:00:04]} e5 {[%emt 0:00:05]} 2. Nf3 {[%emt 0:00:02]} Nc6 {[%emt 0:00:08]} 3. Bb5 {[%emt 0:00:05]} a6 {[%emt 0:00:06]} 4. Bxc6 {[%emt 0:00:01]} dxc6 {[%emt 0:00:06]} 5. O-O {[%emt 0:00:20]} Bg4 {[%emt 0:00:08]} 6. h3 {[%emt 0:00:04]} Bh5 {[%emt 0:00:11]} 7. d3 {[%emt 0:02:08]} f6 {[%emt 0:07:38] C68: Ruy Lopez: Exchange Variation, sidelines.} 8. Be3 {[%emt 0:01:29]} c5 {[%emt 0:01:25]} 9. Nbd2 {[%emt 0:01:05]} Bd6 {[%emt 0:00:16] [#]} 10. g3 $146 {[%emt 0:04:05]} (10. a3 $11) ({Predecessor:} 10. a4 Ne7 11. Qb1 O-O 12. Nh4 Qd7 13. Kh1 Kh8 14. a5 b5 15. Rg1 Bf7 16. Qd1 {0-1 (36) Polak,T (2502)-Rausis,I (2518) Ledec nad Sazavou 2013}) 10... Ne7 $15 {[%emt 0:01:30]} 11. Kg2 {[%emt 0:00:35]} Nc6 {[%emt 0:00:46]} 12. Qb1 {[%emt 0:04:29]} Qd7 {[%emt 0:07:34]} 13. Ng1 {[%emt 0:03:59]} g5 {[%emt 0:05:58]} 14. g4 {[%emt 0:04:10]} Bxg4 {[%emt 0:02:54]} 15. hxg4 {[%emt 0:00:02]} Qxg4+ {[%emt 0:00:24]} 16. Kh2 {[%emt 0:07:13]} Qh4+ {[%emt 0:08:20]} (16... f5 $17 17. Nh3 f4) 17. Kg2 $1 $11 {[%emt 0:05:49] Threatens to win with Ne2.} Qg4+ {[%emt 0:01:21] Weighted Error Value: White=0.21 (precise) /Black=0.17 (very precise)} 1/2-1/2

[Event "Silver Lake Festival 2022"]
[Site "Veliko Gradiste"]
[Date "2022.06.26"]
[Round "9.10"]
[White "Petrovic, Dragan R"]
[Black "Manakova, Maria"]
[Result "1/2-1/2"]
[ECO "B33"]
[WhiteElo "2143"]
[BlackElo "2278"]
[Annotator "TA"]
[PlyCount "33"]
[EventDate "2022.06.16"]
[EventType "swiss"]
[EventCountry "SRB"]
[SourceTitle "playchess.com"]
[Source "ChessBase"]
[SourceQuality "1"]
[TimeControl "5400+30"]

{[%evp 17,33,0,0,8,20,16,17,16,16,18,14,12,39,31,62,60,70,43]} 1. e4 {[%emt 0:06:58]} c5 {[%emt 0:01:14]} 2. Nf3 {[%emt 0:00:25]} Nc6 {[%emt 0:01:29]} 3. d4 {[%emt 0:00:39]} cxd4 {[%emt 0:00:05]} 4. Nxd4 {[%emt 0:00:04]} Nf6 {[%emt 0:00:02]} 5. Nc3 {[%emt 0:00:09][%cal Bb1c3,Bc3d1,Bd1e3][%mdl 32]} e5 {[%emt 0:00:05]} 6. Nf5 {[%emt 0:03:32]} d5 {[%emt 0:00:17]} 7. exd5 {[%emt 0:00:09]} Bxf5 {[%emt 0:00:06]} 8. dxc6 {[%emt 0:00:06]} Qxd1+ {[%emt 0:02:31]} 9. Nxd1 {[%emt 0:00:51]} bxc6 {[%emt 0:00:12]} 10. Ne3 {[%emt 0:01:54] B33: Sicilian: Pelikan and Sveshnikov Variations.} Be4 {[%emt 0:05:10]} 11. Bd2 {[%emt 0:11:59]} Bc5 {[%emt 0:04:28]} 12. O-O-O {[%emt 0:02:49] The position is equal.} O-O {[%emt 0:00:27]} 13. f3 {[%emt 0:04:04]} Bg6 {[%emt 0:00:41] [#]} 14. Bc4 $146 {[%emt 0:10:39]} ({Predecessor:} 14. Ba6 Rab8 15. Rhe1 e4 16. fxe4 Nxe4 17. Ba5 Nf2 18. Rd7 Rfe8 19. Nc4 Rxe1+ 20. Bxe1 {1-0 (40) Mueller,K (2527)-Abel,E Forchheim 2000}) 14... Bd4 {[%emt 0:15:14]} 15. Rhe1 {[%emt 0:05:02] White is slightly better.} Rab8 {[%emt 0:03:08]} 16. Bb3 {[%emt 0:05:37]} e4 {[%emt 0:02:09]} 17. Nc4 {[%emt 0:05:42] Against Be5.  Weighted Error Value: White=0.02 (flawless) /Black=0.08 (flawless)} 1/2-1/2

[Event "Silver Lake Festival 2022"]
[Site "Veliko Gradiste"]
[Date "2022.06.26"]
[Round "9.11"]
[White "Herega, Nejc"]
[Black "Efremov, Vladislav"]
[Result "1/2-1/2"]
[ECO "D12"]
[WhiteElo "2160"]
[BlackElo "2125"]
[Annotator "RC"]
[PlyCount "84"]
[EventDate "2022.06.16"]
[EventType "swiss"]
[EventCountry "SRB"]
[SourceTitle "playchess.com"]
[Source "ChessBase"]
[SourceQuality "1"]
[TimeControl "5400+30"]

1. d4 {[%emt 0:00:15]} d5 {[%emt 0:00:05]} 2. c4 {[%emt 0:00:47]} c6 {[%emt 0:00:03]} 3. Nf3 {[%emt 0:01:13]} Nf6 {[%emt 0:00:09]} 4. e3 {[%emt 0:01:39]} Bf5 {[%emt 0:00:06]} 5. Nc3 {[%emt 0:02:06]} e6 {[%emt 0:00:37]} 6. Nh4 {[%emt 0:01:21]} Be4 {[%emt 0:00:44]} 7. f3 {[%emt 0:01:59]} Bg6 {[%emt 0:00:06]} 8. g3 {[%emt 0:01:23]} Be7 {[%emt 0:06:23]} 9. Bd2 {[%emt 0:05:24]} Nbd7 {[%emt 0:05:53]} 10. Be2 {[%emt 0:07:53]} c5 {[%emt 0:10:57]} 11. cxd5 {[%emt 0:03:19]} cxd4 {[%emt 0:07:37]} 12. exd4 {[%emt 0:02:06]} Nxd5 {[%emt 0:07:49]} 13. Nxg6 {[%emt 0:04:08]} Nxc3 {[%emt 0:08:32]} 14. Bxc3 {[%emt 0:03:46]} hxg6 {[%emt 0:00:04]} 15. d5 {[%emt 0:02:35]} Bd6 {[%emt 0:18:50]} 16. dxe6 {[%emt 0:14:07]} Bxg3+ {[%emt 0:00:07]} 17. Kd2 {[%emt 0:00:18]} Bf4+ {[%emt 0:08:38]} 18. Kc2 {[%emt 0:00:26]} fxe6 {[%emt 0:00:22]} 19. Qd3 {[%emt 0:04:42]} Qg5 {[%emt 0:02:55]} 20. Rag1 {[%emt 0:04:05]} Qf5 {[%emt 0:01:17]} 21. Rxg6 {[%emt 0:05:16]} Rxh2 {[%emt 0:03:04]} 22. Rxh2 {[%emt 0:02:33]} Bxh2 {[%emt 0:00:27]} 23. Rxg7 {[%emt 0:02:14]} Qxd3+ {[%emt 0:03:50]} 24. Bxd3 {[%emt 0:00:30]} O-O-O {[%emt 0:00:17]} 25. Bc4 {[%emt 0:04:29]} Re8 {[%emt 0:00:13]} 26. Bb5 {[%emt 0:03:24]} Rd8 {[%emt 0:00:03]} 27. Re7 {[%emt 0:02:56]} Nc5 {[%emt 0:02:50]} 28. Ba5 {[%emt 0:04:40]} Rf8 {[%emt 0:01:50]} 29. b4 {[%emt 0:03:19]} b6 {[%emt 0:02:03]} 30. bxc5 {[%emt 0:02:54]} bxa5 {[%emt 0:00:04]} 31. c6 {[%emt 0:00:35]} a6 {[%emt 0:05:58]} 32. Bxa6+ {[%emt 0:00:48]} Kb8 {[%emt 0:00:02]} 33. Rb7+ {[%emt 0:02:10]} Ka8 {[%emt 0:00:12]} 34. Rd7 {[%emt 0:00:10]} Kb8 {[%emt 0:01:12]} 35. Rb7+ {[%emt 0:00:41]} Ka8 {[%emt 0:00:05]} 36. Re7 {[%emt 0:00:12]} Kb8 {[%emt 0:00:26]} 37. Kd1 {[%emt 0:03:38]} Bc7 {[%emt 0:02:25]} 38. Ke2 {[%emt 0:00:54]} e5 {[%emt 0:00:25]} 39. Bb7 {[%emt 0:00:25]} Rf4 {[%emt 0:01:26]} 40. Rd7 {[%emt 0:00:57]} Rh4 {[%emt 0:00:46]} 41. Rd2 {[%emt 0:01:21]} Rh2+ {[%emt 0:00:23]} 42. Kd3 {[%emt 0:00:02]} Rxd2+ {[%emt 0:00:00]} 1/2-1/2